[Event "*** Titled Tuesday Blitz"]
[Site "Chess.com"]
[Date "2021.02.02"]
[Round "6"]
[White "Volodar_Murzin"]
[Black "hansen"]
[Result "0-1"]
[WhiteElo "2624"]
[BlackElo "2916"]
[TimeControl "180+1"]
[EndTime "11:09:33 PST"]
[Termination "hansen won on time"]

1. e4 {[%clk 0:02:41]} 1... d6 {[%clk 0:02:48.7]} 2. d4 {[%clk 0:02:38.2]} 2...
Nf6 {[%clk 0:02:49.2]} 3. Nc3 {[%clk 0:02:37.6]} 3... e5 {[%clk 0:02:49.9]} 4.
dxe5 {[%clk 0:02:37.3]} 4... dxe5 {[%clk 0:02:49.9]} 5. Qxd8+ {[%clk 0:02:38.2]}
5... Kxd8 {[%clk 0:02:50.8]} 6. Nf3 {[%clk 0:02:35.7]} 6... Bd6 {[%clk
0:02:48.5]} 7. Bc4 {[%clk 0:02:33.4]} 7... Ke8 {[%clk 0:02:48.1]} 8. Bg5 {[%clk
0:02:23.6]} 8... Nbd7 {[%clk 0:02:47.2]} 9. O-O-O {[%clk 0:02:21.7]} 9... a6
{[%clk 0:02:46.3]} 10. Rhe1 {[%clk 0:02:18.3]} 10... h6 {[%clk 0:02:40.2]} 11.
Bh4 {[%clk 0:02:10.8]} 11... b5 {[%clk 0:02:31.2]} 12. Bb3 {[%clk 0:02:03.2]}
12... Bb7 {[%clk 0:02:28.4]} 13. Bg3 {[%clk 0:01:37.7]} 13... Ke7 {[%clk
0:02:15.4]} 14. Nh4 {[%clk 0:01:10.3]} 14... g6 {[%clk 0:02:13.1]} 15. f4 {[%clk
0:00:20.7]} 15... Rhe8 {[%clk 0:02:09.7]} 16. f5 {[%clk 0:00:18]} 16... g5
{[%clk 0:02:08.8]} 17. Nf3 {[%clk 0:00:18.5]} 17... Kf8 {[%clk 0:02:06.7]} 18.
Nd5 {[%clk 0:00:16.5]} 18... Kg7 {[%clk 0:01:59.4]} 19. Nxf6 {[%clk 0:00:15.6]}
19... Nxf6 {[%clk 0:01:59]} 20. Nd2 {[%clk 0:00:15.8]} 20... Bc5 {[%clk
0:01:48.6]} 21. c3 {[%clk 0:00:13.9]} 21... Rad8 {[%clk 0:01:47.1]} 22. Bc2
{[%clk 0:00:13.9]} 22... Ng4 {[%clk 0:01:40.6]} 23. Nf1 {[%clk 0:00:09.5]} 23...
h5 {[%clk 0:01:35.4]} 24. Rxd8 {[%clk 0:00:07.5]} 24... Rxd8 {[%clk 0:01:33.4]}
25. h3 {[%clk 0:00:08.4]} 25... h4 {[%clk 0:01:33.1]} 26. Bh2 {[%clk 0:00:07.3]}
26... Nxh2 {[%clk 0:01:22.9]} 27. Nxh2 {[%clk 0:00:08.2]} 27... Bf2 {[%clk
0:01:22.6]} 28. f6+ {[%clk 0:00:05.8]} 28... Kg6 {[%clk 0:01:18.8]} 29. Rf1
{[%clk 0:00:03.6]} 29... Bg3 {[%clk 0:01:18.7]} 30. Ng4 {[%clk 0:00:03.5]} 30...
Bc8 {[%clk 0:01:17.5]} 31. Bd1 {[%clk 0:00:02.6]} 31... Be6 {[%clk 0:01:14.6]}
32. Bf3 {[%clk 0:00:01.6]} 32... Bxa2 {[%clk 0:01:03.8]} 33. Kc2 {[%clk
0:00:02.2]} 33... Bf4 {[%clk 0:01:03.8]} 34. Rd1 {[%clk 0:00:02.4]} 34... Rxd1
{[%clk 0:01:00]} 35. Bxd1 {[%clk 0:00:03.3]} 35... Be6 {[%clk 0:00:46.9]} 36. b4
{[%clk 0:00:03.5]} 36... Bc4 {[%clk 0:00:37.9]} 37. Bf3 {[%clk 0:00:04]} 37...
Kh7 {[%clk 0:00:32.9]} 38. Nf2 {[%clk 0:00:04.1]} 38... Kg6 {[%clk 0:00:25.8]}
39. Ng4 {[%clk 0:00:03.6]} 39... Be6 {[%clk 0:00:24]} 40. Kd3 {[%clk 0:00:02.7]}
40... Bg3 {[%clk 0:00:21.9]} 41. Ne3 {[%clk 0:00:02.3]} 41... Bf2 {[%clk
0:00:20.5]} 42. Ng4 {[%clk 0:00:01.7]} 42... Bg3 {[%clk 0:00:18.9]} 43. Kc2
{[%clk 0:00:01.9]} 43... Kh7 {[%clk 0:00:17.6]} 44. Kd3 {[%clk 0:00:02.2]} 44...
Kg8 {[%clk 0:00:17.7]} 45. Ne3 {[%clk 0:00:02.7]} 45... c6 {[%clk 0:00:17.2]}
46. Bg4 {[%clk 0:00:03.4]} 46... Ba2 {[%clk 0:00:10.6]} 47. Bc8 {[%clk
0:00:03.4]} 47... Bb1+ {[%clk 0:00:09.3]} 48. Ke2 {[%clk 0:00:03.1]} 48... Bxe4
{[%clk 0:00:09.2]} 49. Bxa6 {[%clk 0:00:03.8]} 49... Bf4 {[%clk 0:00:09.7]} 50.
Ng4 {[%clk 0:00:01.3]} 50... Bxg2 {[%clk 0:00:09.2]} 51. Bb7 {[%clk 0:00:01.9]}
51... Bd5 {[%clk 0:00:09.4]} 52. Nh6+ {[%clk 0:00:01.7]} 52... Kh7 {[%clk
0:00:09.3]} 53. Ng4 {[%clk 0:00:02.6]} 53... Kg6 {[%clk 0:00:09.7]} 54. Kf2
{[%clk 0:00:02]} 54... e4 {[%clk 0:00:07.6]} 55. Ke2 {[%clk 0:00:01.4]} 55...
Kf5 {[%clk 0:00:07.2]} 0-1

[Event "*** Titled Tuesday Blitz"]
[Site "Chess.com"]
[Date "2021.02.02"]
[Round "6"]
[White "reniite"]
[Black "EfrenRamos1"]
[Result "1-0"]
[WhiteElo "2005"]
[BlackElo "2239"]
[TimeControl "180+1"]
[EndTime "11:09:33 PST"]
[Termination "reniite won on time"]

1. e4 {[%clk 0:03:00.9]} 1... d6 {[%clk 0:02:54.3]} 2. d4 {[%clk 0:02:59]} 2...
Nf6 {[%clk 0:02:52.5]} 3. Nc3 {[%clk 0:02:54.4]} 3... Nbd7 {[%clk 0:02:48.5]} 4.
e5 {[%clk 0:02:43.7]} 4... dxe5 {[%clk 0:02:47.4]} 5. dxe5 {[%clk 0:02:39.1]}
5... Nxe5 {[%clk 0:02:45.1]} 6. Qxd8+ {[%clk 0:02:31.9]} 6... Kxd8 {[%clk
0:02:43.8]} 7. Bf4 {[%clk 0:02:32.8]} 7... Ng6 {[%clk 0:02:36.6]} 8. O-O-O+
{[%clk 0:02:33.7]} 8... Bd7 {[%clk 0:02:35.5]} 9. Bg3 {[%clk 0:02:25.3]} 9... c6
{[%clk 0:02:20.1]} 10. h4 {[%clk 0:02:21.6]} 10... h5 {[%clk 0:02:09.4]} 11. f4
{[%clk 0:02:16.5]} 11... e6 {[%clk 0:02:07.2]} 12. f5 {[%clk 0:02:16.4]} 12...
exf5 {[%clk 0:02:05.2]} 13. Bc4 {[%clk 0:02:16.9]} 13... f4 {[%clk 0:01:58.9]}
14. Bf2 {[%clk 0:02:09.8]} 14... Ne5 {[%clk 0:01:55.9]} 15. Bb3 {[%clk
0:02:08.4]} 15... Bb4 {[%clk 0:01:28.3]} 16. Bd4 {[%clk 0:02:04.9]} 16... Nfg4
{[%clk 0:01:22]} 17. Ne4 {[%clk 0:01:47.4]} 17... Kc7 {[%clk 0:01:04.9]} 18. Nh3
{[%clk 0:01:36.4]} 18... f3 {[%clk 0:00:52.9]} 19. gxf3 {[%clk 0:01:27.5]} 19...
Nxf3 {[%clk 0:00:52.7]} 20. Bxg7 {[%clk 0:01:20.8]} 20... Rhg8 {[%clk
0:00:52.1]} 21. Nf6 {[%clk 0:01:03.5]} 21... Nxf6 {[%clk 0:00:37.8]} 22. Bxf6
{[%clk 0:01:04.4]} 22... Be6 {[%clk 0:00:37.6]} 23. Bxe6 {[%clk 0:00:53.6]}
23... fxe6 {[%clk 0:00:38.5]} 24. Nf4 {[%clk 0:00:54.3]} 24... Rae8 {[%clk
0:00:37.2]} 25. Nxh5 {[%clk 0:00:53.2]} 25... Rg6 {[%clk 0:00:32.2]} 26. Rhf1
{[%clk 0:00:51.6]} 26... Nh2 {[%clk 0:00:31.5]} 27. Be5+ {[%clk 0:00:49.8]}
27... Kb6 {[%clk 0:00:31.1]} 28. Bxh2 {[%clk 0:00:49.9]} 28... Rh8 {[%clk
0:00:31.3]} 29. Bg1+ {[%clk 0:00:45.1]} 29... Ka6 {[%clk 0:00:30.3]} 30. Nf4
{[%clk 0:00:43.8]} 30... Rg4 {[%clk 0:00:29.2]} 31. Nxe6 {[%clk 0:00:42.2]}
31... b6 {[%clk 0:00:22.1]} 32. a3 {[%clk 0:00:37.3]} 32... Be7 {[%clk
0:00:21.5]} 33. Rf7 {[%clk 0:00:27.4]} 33... Bxh4 {[%clk 0:00:20.1]} 34. Nc7+
{[%clk 0:00:27.9]} 34... Ka5 {[%clk 0:00:18.7]} 35. b4+ {[%clk 0:00:21.6]} 35...
Ka4 {[%clk 0:00:18.1]} 36. Kb2 {[%clk 0:00:20]} 36... a5 {[%clk 0:00:13.6]} 37.
bxa5 {[%clk 0:00:19]} 37... bxa5 {[%clk 0:00:12.7]} 38. Bd4 {[%clk 0:00:18.6]}
38... Rb8+ {[%clk 0:00:12.5]} 39. Ka2 {[%clk 0:00:17.3]} 39... Rg3 {[%clk
0:00:12.8]} 40. Bb2 {[%clk 0:00:15.8]} 40... Bd8 {[%clk 0:00:10.6]} 41. Rf4+
{[%clk 0:00:15.7]} 41... Rb4 {[%clk 0:00:07.2]} 42. axb4 {[%clk 0:00:15.7]}
42... axb4 {[%clk 0:00:08.1]} 43. Ne6 {[%clk 0:00:15.2]} 43... Be7 {[%clk
0:00:07.4]} 44. Rd7 {[%clk 0:00:14.1]} 44... Bd6 {[%clk 0:00:05.8]} 45. Nd4
{[%clk 0:00:14]} 45... Ka5 {[%clk 0:00:05.2]} 46. Rxd6 {[%clk 0:00:12.9]} 46...
Kb6 {[%clk 0:00:06.1]} 47. Rxc6+ {[%clk 0:00:12.5]} 47... Kb7 {[%clk 0:00:05.6]}
48. Rf7+ {[%clk 0:00:12.4]} 48... Kb8 {[%clk 0:00:05.9]} 49. Rh6 {[%clk
0:00:12.9]} 49... Rg8 {[%clk 0:00:04.9]} 50. Nc6+ {[%clk 0:00:13.4]} 50... Kc8
{[%clk 0:00:04.5]} 51. Ne7+ {[%clk 0:00:13.4]} 51... Kd8 {[%clk 0:00:03.9]} 52.
Nxg8 {[%clk 0:00:14.3]} 52... Ke8 {[%clk 0:00:04.3]} 53. Ra7 {[%clk 0:00:14.2]}
53... Kf8 {[%clk 0:00:04.1]} 54. Rb6 {[%clk 0:00:14.8]} 54... b3+ {[%clk
0:00:01.7]} 55. Kxb3 {[%clk 0:00:14.6]} 1-0

[Event "*** Titled Tuesday Blitz"]
[Site "Chess.com"]
[Date "2021.02.02"]
[Round "6"]
[White "azikom"]
[Black "Man-Chuk"]
[Result "0-1"]
[WhiteElo "2661"]
[BlackElo "2917"]
[TimeControl "180+1"]
[EndTime "11:09:34 PST"]
[Termination "Man-Chuk won on time"]

1. d4 {[%clk 0:03:00.9]} 1... d5 {[%clk 0:02:59.2]} 2. Nf3 {[%clk 0:03:01]} 2...
Nf6 {[%clk 0:02:58.9]} 3. Bf4 {[%clk 0:03:01.4]} 3... e6 {[%clk 0:02:55.3]} 4.
e3 {[%clk 0:03:01.6]} 4... c5 {[%clk 0:02:55.1]} 5. c3 {[%clk 0:03:01.3]} 5...
Nc6 {[%clk 0:02:55.1]} 6. Nbd2 {[%clk 0:03:01.6]} 6... Be7 {[%clk 0:02:54.6]} 7.
h3 {[%clk 0:03:00.6]} 7... Bd6 {[%clk 0:02:54.5]} 8. Bxd6 {[%clk 0:02:56.7]}
8... Qxd6 {[%clk 0:02:55.4]} 9. Bb5 {[%clk 0:02:56.9]} 9... O-O {[%clk
0:02:54.8]} 10. O-O {[%clk 0:02:56.6]} 10... Bd7 {[%clk 0:02:31.2]} 11. a4
{[%clk 0:02:47.9]} 11... Rfd8 {[%clk 0:02:18.8]} 12. Re1 {[%clk 0:02:46.5]}
12... b6 {[%clk 0:02:05.4]} 13. Bd3 {[%clk 0:02:33.9]} 13... e5 {[%clk
0:01:59.1]} 14. dxe5 {[%clk 0:02:32.9]} 14... Nxe5 {[%clk 0:01:58.3]} 15. Nxe5
{[%clk 0:02:33.1]} 15... Qxe5 {[%clk 0:01:58.4]} 16. Nf3 {[%clk 0:02:30.1]}
16... Qh5 {[%clk 0:01:56.4]} 17. Bb5 {[%clk 0:02:27.3]} 17... Be6 {[%clk
0:01:40.9]} 18. Be2 {[%clk 0:02:26.3]} 18... Qg6 {[%clk 0:01:21.9]} 19. Nh4
{[%clk 0:02:17.8]} 19... Qh6 {[%clk 0:01:13.8]} 20. Nf3 {[%clk 0:02:17.2]} 20...
Ne4 {[%clk 0:01:13.9]} 21. a5 {[%clk 0:01:36.1]} 21... Bxh3 {[%clk 0:01:13]} 22.
gxh3 {[%clk 0:01:35]} 22... Rd6 {[%clk 0:01:12.7]} 23. Bf1 {[%clk 0:01:32.6]}
23... Rg6+ {[%clk 0:01:11.5]} 24. Kh2 {[%clk 0:01:31.4]} 24... Nxf2 {[%clk
0:01:04.7]} 25. Qe2 {[%clk 0:01:30.7]} 25... Ng4+ {[%clk 0:01:01.7]} 26. Kh1
{[%clk 0:01:30.1]} 26... Re8 {[%clk 0:00:59.8]} 27. axb6 {[%clk 0:01:28.2]}
27... axb6 {[%clk 0:00:56.9]} 28. Bg2 {[%clk 0:01:17.7]} 28... Rge6 {[%clk
0:00:47]} 29. Qb5 {[%clk 0:00:46.8]} 29... Nxe3 {[%clk 0:00:38.7]} 30. Re2
{[%clk 0:00:25.5]} 30... Kf8 {[%clk 0:00:27.5]} 31. Qd3 {[%clk 0:00:19.5]} 31...
Nxg2 {[%clk 0:00:26.8]} 32. Rxg2 {[%clk 0:00:13.6]} 32... d4 {[%clk 0:00:04.5]}
33. Nh2 {[%clk 0:00:10.7]} 33... Re3 {[%clk 0:00:04.1]} 34. Qf5 {[%clk
0:00:10.3]} 34... Re1+ {[%clk 0:00:04.2]} 35. Rxe1 {[%clk 0:00:09.4]} 35...
Rxe1+ {[%clk 0:00:05.1]} 36. Rg1 {[%clk 0:00:06]} 36... Qc6+ {[%clk 0:00:05.5]}
37. Nf3 {[%clk 0:00:04.2]} 37... Re3 {[%clk 0:00:03]} 38. Rf1 {[%clk 0:00:04.2]}
38... dxc3 {[%clk 0:00:03.2]} 39. bxc3 {[%clk 0:00:04.4]} 39... g6 {[%clk
0:00:03.3]} 40. Qf4 {[%clk 0:00:03.9]} 40... Rxc3 {[%clk 0:00:03.9]} 41. Kg2
{[%clk 0:00:03.5]} 41... Qd5 {[%clk 0:00:03]} 42. Rf2 {[%clk 0:00:03.4]} 42...
Kg7 {[%clk 0:00:03.1]} 43. Qg3 {[%clk 0:00:03]} 43... b5 {[%clk 0:00:03.1]} 44.
Qf4 {[%clk 0:00:01.6]} 44... b4 {[%clk 0:00:03.4]} 45. Kh2 {[%clk 0:00:02.1]}
45... b3 {[%clk 0:00:02.9]} 46. Ne5 {[%clk 0:00:00.1]} 46... Rc2 {[%clk
0:00:03.2]} 0-1

[Event "*** Titled Tuesday Blitz"]
[Site "Chess.com"]
[Date "2021.02.02"]
[Round "6"]
[White "Alexchess1984"]
[Black "TokChess"]
[Result "0-1"]
[WhiteElo "2672"]
[BlackElo "2493"]
[TimeControl "180+1"]
[EndTime "11:09:35 PST"]
[Termination "TokChess won by resignation"]

1. e4 {[%clk 0:03:00.9]} 1... c5 {[%clk 0:03:00.1]} 2. Nf3 {[%clk 0:03:00.3]}
2... e6 {[%clk 0:02:59.4]} 3. c3 {[%clk 0:03:00]} 3... Nf6 {[%clk 0:02:58.9]} 4.
e5 {[%clk 0:03:00.2]} 4... Nd5 {[%clk 0:02:59.2]} 5. Bc4 {[%clk 0:03:00.6]} 5...
d6 {[%clk 0:02:58.6]} 6. d4 {[%clk 0:03:00.3]} 6... cxd4 {[%clk 0:02:58]} 7.
cxd4 {[%clk 0:03:01.2]} 7... Be7 {[%clk 0:02:56.3]} 8. O-O {[%clk 0:03:00.8]}
8... O-O {[%clk 0:02:56.4]} 9. Re1 {[%clk 0:02:59.5]} 9... Nc6 {[%clk
0:02:55.1]} 10. exd6 {[%clk 0:02:59.4]} 10... Qxd6 {[%clk 0:02:54]} 11. Nc3
{[%clk 0:02:59.9]} 11... Nxc3 {[%clk 0:02:53.5]} 12. bxc3 {[%clk 0:02:59.6]}
12... b6 {[%clk 0:02:50.2]} 13. Ng5 {[%clk 0:02:57.2]} 13... Bxg5 {[%clk
0:02:42.3]} 14. Bxg5 {[%clk 0:02:56.4]} 14... Bb7 {[%clk 0:02:42]} 15. Qh5
{[%clk 0:02:54]} 15... Ne7 {[%clk 0:02:31.4]} 16. Bxe7 {[%clk 0:02:38.9]} 16...
Qxe7 {[%clk 0:02:31.2]} 17. Bd3 {[%clk 0:02:35.3]} 17... g6 {[%clk 0:02:29.5]}
18. Qh6 {[%clk 0:02:32.2]} 18... Rac8 {[%clk 0:02:22.1]} 19. Rac1 {[%clk
0:02:31.2]} 19... Rfd8 {[%clk 0:02:14.2]} 20. h4 {[%clk 0:02:21.2]} 20... Qf6
{[%clk 0:02:00.7]} 21. Re5 {[%clk 0:02:11.8]} 21... Rd5 {[%clk 0:01:55.5]} 22.
Be4 {[%clk 0:02:06.9]} 22... Rxe5 {[%clk 0:01:36.2]} 23. dxe5 {[%clk 0:02:06.2]}
23... Qe7 {[%clk 0:01:33.7]} 24. Bxb7 {[%clk 0:02:02.7]} 24... Qxb7 {[%clk
0:01:34.6]} 25. Rd1 {[%clk 0:01:54.3]} 25... Qe7 {[%clk 0:01:28.6]} 26. Rd3
{[%clk 0:01:54.3]} 26... Rd8 {[%clk 0:01:28.1]} 27. Rf3 {[%clk 0:01:46.6]} 27...
Rd5 {[%clk 0:01:07.7]} 28. Qf4 {[%clk 0:01:46.3]} 28... h5 {[%clk 0:01:06.7]}
29. c4 {[%clk 0:01:38.4]} 29... Rd7 {[%clk 0:01:01.7]} 30. a3 {[%clk 0:01:28.8]}
30... Qc5 {[%clk 0:00:57.7]} 31. g4 {[%clk 0:01:09.2]} 31... hxg4 {[%clk
0:00:53.9]} 32. Qxg4 {[%clk 0:01:00.5]} 32... Qd4 {[%clk 0:00:54.1]} 33. Qg5
{[%clk 0:00:48.9]} 33... Qe4 {[%clk 0:00:49.5]} 34. Kg2 {[%clk 0:00:38.7]} 34...
Rd3 {[%clk 0:00:44.9]} 35. Qf4 {[%clk 0:00:38.7]} 35... Qxf4 {[%clk 0:00:39.2]}
36. Rxf4 {[%clk 0:00:38.6]} 36... Rxa3 {[%clk 0:00:39.2]} 37. Rd4 {[%clk
0:00:33.2]} 37... Rc3 {[%clk 0:00:33]} 38. f3 {[%clk 0:00:30]} 38... Kg7 {[%clk
0:00:29.9]} 39. Kg3 {[%clk 0:00:30.4]} 39... a5 {[%clk 0:00:28.7]} 40. Rd6
{[%clk 0:00:25.4]} 40... Rxc4 {[%clk 0:00:23.7]} 41. Rxb6 {[%clk 0:00:25.4]}
41... a4 {[%clk 0:00:24.1]} 42. Ra6 {[%clk 0:00:25.5]} 42... Rb4 {[%clk
0:00:23.5]} 43. f4 {[%clk 0:00:23]} 43... Kf8 {[%clk 0:00:23.8]} 44. Ra7 {[%clk
0:00:22.4]} 44... Ke8 {[%clk 0:00:24]} 45. Kg4 {[%clk 0:00:22.4]} 45... Rc4
{[%clk 0:00:22.8]} 46. Kg5 {[%clk 0:00:22.6]} 46... Rd4 {[%clk 0:00:21.6]} 47.
Ra8+ {[%clk 0:00:20.3]} 47... Ke7 {[%clk 0:00:21.5]} 48. Ra7+ {[%clk 0:00:20.7]}
48... Kf8 {[%clk 0:00:18.1]} 49. Ra8+ {[%clk 0:00:17.5]} 49... Kg7 {[%clk
0:00:18.2]} 50. Ra7 {[%clk 0:00:17.5]} 50... Rd1 {[%clk 0:00:15.7]} 51. Kg4
{[%clk 0:00:17.7]} 51... Rg1+ {[%clk 0:00:15.6]} 52. Kf3 {[%clk 0:00:17.8]}
52... Rh1 {[%clk 0:00:15.5]} 53. Kg3 {[%clk 0:00:15.4]} 53... Rg1+ {[%clk
0:00:15.3]} 54. Kf2 {[%clk 0:00:15.2]} 54... Rg4 {[%clk 0:00:14.5]} 55. Kf3
{[%clk 0:00:14.8]} 55... Rxh4 {[%clk 0:00:14.5]} 56. Rxa4 {[%clk 0:00:15.5]}
56... g5 {[%clk 0:00:14.9]} 57. Kg3 {[%clk 0:00:13.6]} 57... Rxf4 {[%clk
0:00:15.4]} 58. Rxf4 {[%clk 0:00:13.9]} 58... gxf4+ {[%clk 0:00:16.3]} 59. Kxf4
{[%clk 0:00:14.6]} 59... Kh6 {[%clk 0:00:16.1]} 60. Kg4 {[%clk 0:00:13.6]} 60...
Kg6 {[%clk 0:00:16.7]} 61. Kf4 {[%clk 0:00:13.1]} 61... Kh5 {[%clk 0:00:17.3]}
62. Ke4 {[%clk 0:00:13.2]} 62... Kg4 {[%clk 0:00:17.6]} 0-1

[Event "*** Titled Tuesday Blitz"]
[Site "Chess.com"]
[Date "2021.02.02"]
[Round "6"]
[White "m_ezat"]
[Black "CrushingKings"]
[Result "0-1"]
[WhiteElo "2537"]
[BlackElo "2358"]
[TimeControl "180+1"]
[EndTime "11:09:38 PST"]
[Termination "CrushingKings won by checkmate"]

1. d4 {[%clk 0:03:00.9]} 1... Nf6 {[%clk 0:02:34.1]} 2. c4 {[%clk 0:03:00.3]}
2... g6 {[%clk 0:02:34.7]} 3. Nc3 {[%clk 0:03:00.5]} 3... Bg7 {[%clk 0:02:35.3]}
4. e4 {[%clk 0:03:00.9]} 4... d6 {[%clk 0:02:36]} 5. Be2 {[%clk 0:03:01.7]} 5...
Nbd7 {[%clk 0:02:36.7]} 6. Bg5 {[%clk 0:03:02.3]} 6... e5 {[%clk 0:02:37.2]} 7.
d5 {[%clk 0:03:01.9]} 7... a5 {[%clk 0:02:37.7]} 8. f3 {[%clk 0:02:54.1]} 8...
Nc5 {[%clk 0:02:37.6]} 9. g4 {[%clk 0:02:50.2]} 9... h6 {[%clk 0:02:36.7]} 10.
Be3 {[%clk 0:02:49.6]} 10... b6 {[%clk 0:02:27.9]} 11. Qd2 {[%clk 0:02:49]}
11... Bd7 {[%clk 0:02:27.2]} 12. h4 {[%clk 0:02:48.8]} 12... h5 {[%clk
0:02:26.4]} 13. g5 {[%clk 0:02:43.7]} 13... Ng8 {[%clk 0:02:26.6]} 14. Nh3
{[%clk 0:02:43.3]} 14... Ne7 {[%clk 0:02:26.8]} 15. Nf2 {[%clk 0:02:41]} 15...
a4 {[%clk 0:02:24.6]} 16. Nd3 {[%clk 0:02:40.5]} 16... Nc8 {[%clk 0:02:23.1]}
17. Kf2 {[%clk 0:02:37.3]} 17... O-O {[%clk 0:02:21.6]} 18. Rab1 {[%clk
0:02:20.7]} 18... Qe7 {[%clk 0:02:09.8]} 19. b4 {[%clk 0:02:19.3]} 19... axb3
{[%clk 0:02:09.3]} 20. axb3 {[%clk 0:02:19.8]} 20... f5 {[%clk 0:02:03.6]} 21.
gxf6 {[%clk 0:02:17.4]} 21... Bxf6 {[%clk 0:02:04]} 22. b4 {[%clk 0:02:08.6]}
22... Bxh4+ {[%clk 0:02:01.7]} 23. Kg2 {[%clk 0:02:07.9]} 23... Nxd3 {[%clk
0:02:00.9]} 24. Bxd3 {[%clk 0:02:07.7]} 24... Ra3 {[%clk 0:01:57.7]} 25. Nb5
{[%clk 0:01:42.8]} 25... Bxb5 {[%clk 0:01:27]} 26. cxb5 {[%clk 0:01:42.7]} 26...
g5 {[%clk 0:01:27.6]} 27. Rbg1 {[%clk 0:01:37.9]} 27... Qf6 {[%clk 0:01:24.5]}
28. Be2 {[%clk 0:01:32.9]} 28... g4 {[%clk 0:01:19.9]} 29. Rf1 {[%clk
0:01:22.2]} 29... gxf3+ {[%clk 0:01:05.7]} 30. Rxf3 {[%clk 0:01:09]} 30... Qg6+
{[%clk 0:01:02.8]} 31. Kf1 {[%clk 0:01:01.4]} 31... Ra1+ {[%clk 0:01:00]} 32.
Qc1 {[%clk 0:00:54.8]} 32... Rxc1+ {[%clk 0:00:58.4]} 33. Bxc1 {[%clk
0:00:55.4]} 33... Qxe4 {[%clk 0:00:51.6]} 34. Rg1+ {[%clk 0:00:54.4]} 34... Kh7
{[%clk 0:00:36.6]} 35. Rxf8 {[%clk 0:00:53.9]} 35... Ne7 {[%clk 0:00:31.2]} 36.
Rf3 {[%clk 0:00:35.6]} 36... Qxd5 {[%clk 0:00:17.5]} 37. Rh3 {[%clk 0:00:34.7]}
37... Qf7+ {[%clk 0:00:13.4]} 38. Kg2 {[%clk 0:00:30.5]} 38... Qf2+ {[%clk
0:00:13.2]} 39. Kh1 {[%clk 0:00:30.7]} 39... Qxe2 {[%clk 0:00:12.2]} 40. Rxh4
{[%clk 0:00:30.7]} 40... Nf5 {[%clk 0:00:12.1]} 41. Rh3 {[%clk 0:00:25.5]} 41...
Qe4+ {[%clk 0:00:12.6]} 42. Kh2 {[%clk 0:00:23.8]} 42... h4 {[%clk 0:00:10.6]}
43. Rg2 {[%clk 0:00:20]} 43... Nd4 {[%clk 0:00:10.5]} 44. Rf2 {[%clk 0:00:17.2]}
44... Qg4 {[%clk 0:00:10.1]} 45. Be3 {[%clk 0:00:15.5]} 45... Nf5 {[%clk
0:00:09.7]} 46. Rg2 {[%clk 0:00:13.4]} 46... Qe4 {[%clk 0:00:10.1]} 47. Bg5
{[%clk 0:00:13.4]} 47... d5 {[%clk 0:00:05.1]} 48. Bf6 {[%clk 0:00:13.2]} 48...
d4 {[%clk 0:00:04.9]} 49. Kg1 {[%clk 0:00:10.3]} 49... d3 {[%clk 0:00:05.4]} 50.
Rf2 {[%clk 0:00:07.8]} 50... d2 {[%clk 0:00:04.7]} 51. Re2 {[%clk 0:00:01.2]}
51... Qxe2 {[%clk 0:00:04.5]} 52. Rxh4+ {[%clk 0:00:01.8]} 52... Nxh4 {[%clk
0:00:03.9]} 53. Bxh4 {[%clk 0:00:02.7]} 53... d1=Q+ {[%clk 0:00:03.5]} 54. Be1
{[%clk 0:00:01.6]} 54... Qdxe1# {[%clk 0:00:04.4]} 0-1